[Event "Titled Tuesday Blitz November 29 Late 2022"]
[White "Dylag, Emilia"]
[Black "Vlassov, Nikolai"]
[WhiteFideId "21805172"]
[BlackFideId "4103360"]
[WhiteElo "1878"]
[BlackElo "2324"]
[Result "1-0"]
[Round "06"]
[TimeControl "180+1"]
[Date "2022.11.30"]
[WhiteClock "0:00:12"]
[BlackClock "0:00:07"]

1. d4 {[%clk 0:03:00]}  Nf6 {[%clk 0:02:58]} 2. c4 {[%clk 0:03:01]}  Nc6 {[%clk 0:02:58]} 3. g3 {[%clk 0:03:01]}  e5 {[%clk 0:02:58]} 4. d5 {[%clk 0:03:00]}  Ne7 {[%clk 0:02:58]} 5. Bg2 {[%clk 0:03:00]}  Ng6 {[%clk 0:02:58]} 6. Nc3 {[%clk 0:03:00]}  Bc5 {[%clk 0:02:58]} 7. h3 {[%clk 0:02:56]}  a5 {[%clk 0:02:53]} 8. Nf3 {[%clk 0:02:56]}  d6 {[%clk 0:02:53]} 9. Bg5 {[%clk 0:02:54]}  h6 {[%clk 0:02:52]} 10. Bxf6 {[%clk 0:02:54]}  Qxf6 {[%clk 0:02:53]} 11. Ne4 {[%clk 0:02:55]}  Bb4+ {[%clk 0:02:53]} 12. Kf1 {[%clk 0:02:52]}  Qf5 {[%clk 0:02:49]} 13. Qd3 {[%clk 0:02:52]}  a4 {[%clk 0:02:30]} 14. h4 {[%clk 0:02:50]}  Qh5 {[%clk 0:02:19]} 15. a3 {[%clk 0:02:36]}  Ba5 {[%clk 0:02:19]} 16. c5 {[%clk 0:02:37]}  f5 {[%clk 0:01:54]} 17. Nc3 {[%clk 0:02:29]}  O-O {[%clk 0:01:42]} 18. Qc4 {[%clk 0:02:19]}  Bxc3 {[%clk 0:01:20]} 19. Qxc3 {[%clk 0:02:09]}  Bd7 {[%clk 0:01:01]} 20. Nd2 {[%clk 0:01:56]}  e4 {[%clk 0:00:55]} 21. cxd6 {[%clk 0:01:51]}  cxd6 {[%clk 0:00:55]} 22. Qb4 {[%clk 0:01:51]}  f4 {[%clk 0:00:32]} 23. Nxe4 {[%clk 0:01:37]}  fxg3 {[%clk 0:00:23]} 24. Qxd6 {[%clk 0:01:29]}  Bb5 {[%clk 0:00:19]} 25. Nxg3 {[%clk 0:01:27]}  Qg4 {[%clk 0:00:11]} 26. Bh3 {[%clk 0:01:06]}  Qf4 {[%clk 0:00:11]} 27. Qxf4 {[%clk 0:01:01]}  Nxf4 {[%clk 0:00:12]} 28. Rd1 {[%clk 0:00:57]}  Rae8 {[%clk 0:00:09]} 29. Rd2 {[%clk 0:00:56]}  Re5 {[%clk 0:00:09]} 30. d6 {[%clk 0:00:55]}  Rd8 {[%clk 0:00:07]} 31. Kg1 {[%clk 0:00:32]}  Nxe2+ {[%clk 0:00:06]} 32. Nxe2 {[%clk 0:00:31]}  Rxe2 {[%clk 0:00:06]} 33. Rxe2 {[%clk 0:00:27]}  Bxe2 {[%clk 0:00:07]} 34. d7 {[%clk 0:00:27]}  Kf7 {[%clk 0:00:03]} 35. Kh2 {[%clk 0:00:26]}  Bf3 {[%clk 0:00:02]} 36. Re1 {[%clk 0:00:20]}  Bc6 {[%clk 0:00:02]} 37. Be6+ {[%clk 0:00:19]}  Kf6 {[%clk 0:00:02]} 38. Bg4 {[%clk 0:00:14]}  Bb5 {[%clk 0:00:02]} 39. Rd1 {[%clk 0:00:13]}  Ke7 {[%clk 0:00:02]} 40. Rd4 {[%clk 0:00:11]}  Bxd7 {[%clk 0:00:01]} 41. Bxd7 {[%clk 0:00:11]}  Rxd7 {[%clk 0:00:02]} 42. Rxa4 {[%clk 0:00:12]}  Rd2 {[%clk 0:00:02]} 43. Rb4 {[%clk 0:00:12]}  Rxf2+ {[%clk 0:00:02]} 44. Kg3 {[%clk 0:00:12]}  Rc2 {[%clk 0:00:02]} 45. Rxb7+ {[%clk 0:00:13]}  Kf6 {[%clk 0:00:03]} 46. a4 {[%clk 0:00:10]}  Rd2 {[%clk 0:00:03]} 47. a5 {[%clk 0:00:10]}  Rd3+ {[%clk 0:00:04]} 48. Kg2 {[%clk 0:00:09]}  Rd2+ {[%clk 0:00:04]} 49. Kf3 {[%clk 0:00:09]}  Rd3+ {[%clk 0:00:04]} 50. Ke4 {[%clk 0:00:09]}  Rh3 {[%clk 0:00:04]} 51. a6 {[%clk 0:00:09]}  Rxh4+ {[%clk 0:00:05]} 52. Kd5 {[%clk 0:00:09]}  Ra4 {[%clk 0:00:05]} 53. a7 {[%clk 0:00:09]}  h5 {[%clk 0:00:05]} 54. b4 {[%clk 0:00:08]}  h4 {[%clk 0:00:05]} 55. b5 {[%clk 0:00:09]}  h3 {[%clk 0:00:06]} 56. Rb6+ {[%clk 0:00:10]}  Kf5 {[%clk 0:00:05]} 57. Ra6 {[%clk 0:00:11]}  Rh4 {[%clk 0:00:03]} 58. a8=Q {[%clk 0:00:11]}  h2 {[%clk 0:00:04]} 59. Qf8+ {[%clk 0:00:11]}  Kg4 {[%clk 0:00:04]} 60. Ra4+ {[%clk 0:00:11]}  Kg3 {[%clk 0:00:05]} 61. Rxh4 {[%clk 0:00:12]}  Kxh4 {[%clk 0:00:05]} 62. Qf3 {[%clk 0:00:12]}  g5 {[%clk 0:00:05]} 63. Ke4 {[%clk 0:00:11]}  g4 {[%clk 0:00:05]} 64. Qh1 {[%clk 0:00:11]}  g3 {[%clk 0:00:05]} 65. Kf3 {[%clk 0:00:12]}  Kh3 {[%clk 0:00:06]} 66. b6 {[%clk 0:00:11]}  Kh4 {[%clk 0:00:07]} 67. b7 {[%clk 0:00:12]} 1-0


[Site "https://www.chess.com"]

[Event "Titled Tuesday Blitz November 29 Late 2022"]
[White "Espinosa, Pedro"]
[Black "Rangel, Daniel"]
[WhiteFideId "30921066"]
[BlackFideId "2124475"]
[WhiteElo "2016"]
[BlackElo "2225"]
[Result "1/2-1/2"]
[Round "06"]
[TimeControl "180+1"]
[Date "2022.11.30"]
[WhiteClock "0:00:20"]
[BlackClock "0:00:37"]

1. d4 {[%clk 0:03:00]}  d5 {[%clk 0:02:59]} 2. c4 {[%clk 0:02:58]}  c6 {[%clk 0:02:59]} 3. cxd5 {[%clk 0:02:56]}  cxd5 {[%clk 0:02:59]} 4. Bf4 {[%clk 0:02:56]}  Nf6 {[%clk 0:02:59]} 5. Nc3 {[%clk 0:02:56]}  g6 {[%clk 0:03:00]} 6. e3 {[%clk 0:02:53]}  Bg7 {[%clk 0:03:01]} 7. Nf3 {[%clk 0:02:46]}  O-O {[%clk 0:03:01]} 8. Be2 {[%clk 0:02:44]}  Nc6 {[%clk 0:03:01]} 9. O-O {[%clk 0:02:43]}  a6 {[%clk 0:03:00]} 10. h3 {[%clk 0:02:43]}  b5 {[%clk 0:02:59]} 11. Rc1 {[%clk 0:02:41]}  Bb7 {[%clk 0:02:58]} 12. a3 {[%clk 0:02:34]}  Na5 {[%clk 0:02:52]} 13. Ne5 {[%clk 0:02:26]}  Nc4 {[%clk 0:02:51]} 14. Nxc4 {[%clk 0:02:25]}  dxc4 {[%clk 0:02:39]} 15. Bf3 {[%clk 0:02:25]}  Qd7 {[%clk 0:02:39]} 16. d5 {[%clk 0:02:00]}  Rad8 {[%clk 0:02:24]} 17. e4 {[%clk 0:01:57]}  Qc8 {[%clk 0:02:23]} 18. Qe2 {[%clk 0:01:53]}  Rfe8 {[%clk 0:02:16]} 19. Rfd1 {[%clk 0:01:51]}  e5 {[%clk 0:02:12]} 20. Be3 {[%clk 0:01:41]}  Nd7 {[%clk 0:02:10]} 21. Bg4 {[%clk 0:01:36]}  h5 {[%clk 0:02:06]} 22. Bf3 {[%clk 0:01:35]}  Nc5 {[%clk 0:02:04]} 23. Bg5 {[%clk 0:01:34]}  Nd3 {[%clk 0:01:53]} 24. Bxd8 {[%clk 0:00:57]}  Nxc1 {[%clk 0:01:52]} 25. Rxc1 {[%clk 0:00:58]}  Qxd8 {[%clk 0:01:50]} 26. a4 {[%clk 0:00:56]}  Qb6 {[%clk 0:01:45]} 27. axb5 {[%clk 0:00:54]}  axb5 {[%clk 0:01:46]} 28. Ra1 {[%clk 0:00:55]}  Bf8 {[%clk 0:01:44]} 29. Qc2 {[%clk 0:00:38]}  Bc5 {[%clk 0:01:42]} 30. Rf1 {[%clk 0:00:35]}  Kg7 {[%clk 0:01:38]} 31. b3 {[%clk 0:00:34]}  Bd4 {[%clk 0:01:30]} 32. bxc4 {[%clk 0:00:30]}  bxc4 {[%clk 0:01:27]} 33. Rb1 {[%clk 0:00:24]}  Qa6 {[%clk 0:00:55]} 34. Nb5 {[%clk 0:00:24]}  Rc8 {[%clk 0:00:41]} 35. Be2 {[%clk 0:00:18]}  Ba8 {[%clk 0:00:37]} 36. Bxc4 {[%clk 0:00:11]}  Qb6 {[%clk 0:00:36]} 37. Qe2 {[%clk 0:00:10]}  Qc5 {[%clk 0:00:28]} 38. Bd3 {[%clk 0:00:09]}  Rb8 {[%clk 0:00:20]} 39. Nxd4 {[%clk 0:00:08]}  Rxb1+ {[%clk 0:00:20]} 40. Bxb1 {[%clk 0:00:09]}  Qxd4 {[%clk 0:00:21]} 41. Bd3 {[%clk 0:00:08]}  Bb7 {[%clk 0:00:19]} 42. g3 {[%clk 0:00:08]}  h4 {[%clk 0:00:18]} 43. Kg2 {[%clk 0:00:07]}  hxg3 {[%clk 0:00:18]} 44. Kxg3 {[%clk 0:00:07]}  Qc3 {[%clk 0:00:17]} 45. Qe3 {[%clk 0:00:07]}  Qa1 {[%clk 0:00:15]} 46. Kg2 {[%clk 0:00:06]}  Bc8 {[%clk 0:00:15]} 47. Be2 {[%clk 0:00:06]}  Qb2 {[%clk 0:00:13]} 48. Bg4 {[%clk 0:00:06]}  Ba6 {[%clk 0:00:10]} 49. d6 {[%clk 0:00:04]}  Qa1 {[%clk 0:00:09]} 50. d7 {[%clk 0:00:03]}  Bf1+ {[%clk 0:00:08]} 51. Kh2 {[%clk 0:00:03]}  Qa8 {[%clk 0:00:07]} 52. Qg3 {[%clk 0:00:03]}  Qb8 {[%clk 0:00:07]} 53. d8=Q {[%clk 0:00:03]}  Qxd8 {[%clk 0:00:07]} 54. Qxe5+ {[%clk 0:00:03]}  Kg8 {[%clk 0:00:05]} 55. Qd5 {[%clk 0:00:03]}  Qf8 {[%clk 0:00:05]} 56. e5 {[%clk 0:00:04]}  Ba6 {[%clk 0:00:05]} 57. e6 {[%clk 0:00:04]}  fxe6 {[%clk 0:00:05]} 58. Qxe6+ {[%clk 0:00:05]}  Kg7 {[%clk 0:00:06]} 59. Qxa6 {[%clk 0:00:05]}  Qxf2+ {[%clk 0:00:06]} 60. Kh1 {[%clk 0:00:05]}  Qe1+ {[%clk 0:00:07]} 61. Kg2 {[%clk 0:00:05]}  Qd2+ {[%clk 0:00:07]} 62. Kf1 {[%clk 0:00:05]}  Qc1+ {[%clk 0:00:07]} 63. Kf2 {[%clk 0:00:05]}  Qf4+ {[%clk 0:00:07]} 64. Bf3 {[%clk 0:00:05]}  Qd2+ {[%clk 0:00:07]} 65. Qe2 {[%clk 0:00:04]}  Qxe2+ {[%clk 0:00:08]} 66. Kxe2 {[%clk 0:00:03]}  g5 {[%clk 0:00:08]} 67. Bg4 {[%clk 0:00:04]}  Kh8 {[%clk 0:00:09]} 68. Ke3 {[%clk 0:00:04]}  Kg8 {[%clk 0:00:10]} 69. Ke4 {[%clk 0:00:05]}  Kh8 {[%clk 0:00:10]} 70. Kf5 {[%clk 0:00:06]}  Kg8 {[%clk 0:00:11]} 71. Kf6 {[%clk 0:00:07]}  Kh8 {[%clk 0:00:12]} 72. Kg6 {[%clk 0:00:07]}  Kg8 {[%clk 0:00:13]} 73. Bf5 {[%clk 0:00:08]}  Kh8 {[%clk 0:00:14]} 74. Be4 {[%clk 0:00:06]}  Kg8 {[%clk 0:00:15]} 75. Bd3 {[%clk 0:00:06]}  Kh8 {[%clk 0:00:16]} 76. Be2 {[%clk 0:00:03]}  Kg8 {[%clk 0:00:17]} 77. Bg4 {[%clk 0:00:04]}  Kh8 {[%clk 0:00:18]} 78. Kf5 {[%clk 0:00:04]}  Kg8 {[%clk 0:00:19]} 79. Kf6 {[%clk 0:00:05]}  Kh8 {[%clk 0:00:19]} 80. Ke5 {[%clk 0:00:06]}  Kg8 {[%clk 0:00:20]} 81. Be6+ {[%clk 0:00:06]}  Kh8 {[%clk 0:00:21]} 82. Bd5 {[%clk 0:00:07]}  Kg7 {[%clk 0:00:21]} 83. Kf5 {[%clk 0:00:07]}  Kh8 {[%clk 0:00:21]} 84. Kg4 {[%clk 0:00:08]}  Kg7 {[%clk 0:00:22]} 85. Kh5 {[%clk 0:00:08]}  Kh8 {[%clk 0:00:22]} 86. Bc4 {[%clk 0:00:06]}  Kg7 {[%clk 0:00:23]} 87. Bd3 {[%clk 0:00:07]}  Kh8 {[%clk 0:00:23]} 88. Bf5 {[%clk 0:00:07]}  Kg8 {[%clk 0:00:24]} 89. Kh6 {[%clk 0:00:06]}  Kh8 {[%clk 0:00:25]} 90. Bg6 {[%clk 0:00:06]}  Kg8 {[%clk 0:00:25]} 91. Bh5 {[%clk 0:00:07]}  Kh8 {[%clk 0:00:25]} 92. Bg6 {[%clk 0:00:06]}  Kg8 {[%clk 0:00:25]} 93. Be4 {[%clk 0:00:06]}  Kh8 {[%clk 0:00:25]} 94. Bd5 {[%clk 0:00:04]}  g4 {[%clk 0:00:24]} 95. h4 {[%clk 0:00:05]}  g3 {[%clk 0:00:24]} 96. Bg2 {[%clk 0:00:05]}  Kg8 {[%clk 0:00:24]} 97. Kg6 {[%clk 0:00:06]}  Kh8 {[%clk 0:00:25]} 98. h5 {[%clk 0:00:06]}  Kg8 {[%clk 0:00:26]} 99. h6 {[%clk 0:00:07]}  Kh8 {[%clk 0:00:27]} 100. Bd5 {[%clk 0:00:06]}  g2 {[%clk 0:00:26]} 101. Bxg2 {[%clk 0:00:07]}  Kg8 {[%clk 0:00:26]} 102. Bf3 {[%clk 0:00:08]}  Kh8 {[%clk 0:00:27]} 103. Be2 {[%clk 0:00:09]}  Kg8 {[%clk 0:00:27]} 104. Bd1 {[%clk 0:00:09]}  Kh8 {[%clk 0:00:28]} 105. Bc2 {[%clk 0:00:10]}  Kg8 {[%clk 0:00:29]} 106. Bb3+ {[%clk 0:00:11]}  Kh8 {[%clk 0:00:30]} 107. Ba4 {[%clk 0:00:12]}  Kg8 {[%clk 0:00:30]} 108. Bb5 {[%clk 0:00:13]}  Kh8 {[%clk 0:00:31]} 109. Bc6 {[%clk 0:00:14]}  Kg8 {[%clk 0:00:32]} 110. Bd5+ {[%clk 0:00:15]}  Kh8 {[%clk 0:00:33]} 111. Be4 {[%clk 0:00:16]}  Kg8 {[%clk 0:00:34]} 112. Bf3 {[%clk 0:00:17]}  Kh8 {[%clk 0:00:35]} 113. Bg2 {[%clk 0:00:18]}  Kg8 {[%clk 0:00:36]} 114. Bf1 {[%clk 0:00:18]}  Kh8 {[%clk 0:00:36]} 115. Be2 {[%clk 0:00:19]}  Kg8 {[%clk 0:00:37]} 116. Bf3 {[%clk 0:00:20]} 1/2-1/2


[Site "https://www.chess.com"]

[Event "Titled Tuesday Blitz November 29 Late 2022"]
[White "Ferreira, Vitor Hugo Vieira"]
[Black "Quinones Garcia, Santiago"]
[WhiteFideId "2119765"]
[BlackFideId "4408497"]
[WhiteElo "2168"]
[BlackElo "2249"]
[Result "1-0"]
[Round "06"]
[TimeControl "180+1"]
[Date "2022.11.30"]
[WhiteClock "0:01:27"]
[BlackClock "0:01:19"]

1. Nf3 {[%clk 0:03:00]}  d5 {[%clk 0:02:51]} 2. g3 {[%clk 0:03:00]}  c6 {[%clk 0:02:51]} 3. Bg2 {[%clk 0:03:01]}  Nf6 {[%clk 0:02:51]} 4. O-O {[%clk 0:03:01]}  Bg4 {[%clk 0:02:51]} 5. c4 {[%clk 0:02:59]}  Nbd7 {[%clk 0:02:51]} 6. cxd5 {[%clk 0:02:59]}  cxd5 {[%clk 0:02:51]} 7. d3 {[%clk 0:02:58]}  e6 {[%clk 0:02:51]} 8. Nc3 {[%clk 0:02:58]}  Be7 {[%clk 0:02:51]} 9. e4 {[%clk 0:02:59]}  dxe4 {[%clk 0:02:51]} 10. dxe4 {[%clk 0:02:59]}  O-O {[%clk 0:02:50]} 11. h3 {[%clk 0:02:59]}  Bh5 {[%clk 0:02:50]} 12. Bf4 {[%clk 0:02:57]}  e5 {[%clk 0:02:49]} 13. Be3 {[%clk 0:02:54]}  Qa5 {[%clk 0:02:36]} 14. a3 {[%clk 0:02:50]}  Rfd8 {[%clk 0:02:33]} 15. b4 {[%clk 0:02:50]}  Qc7 {[%clk 0:02:30]} 16. Qb3 {[%clk 0:02:49]}  Rac8 {[%clk 0:02:19]} 17. Rac1 {[%clk 0:02:17]}  Qc4 {[%clk 0:02:14]} 18. Qxc4 {[%clk 0:02:17]}  Rxc4 {[%clk 0:02:12]} 19. Nd5 {[%clk 0:02:18]}  Rxc1 {[%clk 0:02:06]} 20. Nxe7+ {[%clk 0:02:17]}  Kf8 {[%clk 0:02:06]} 21. Rxc1 {[%clk 0:02:18]}  Kxe7 {[%clk 0:02:05]} 22. Rc7 {[%clk 0:02:17]}  b5 {[%clk 0:01:53]} 23. Bxa7 {[%clk 0:02:10]}  Nxe4 {[%clk 0:01:52]} 24. Nxe5 {[%clk 0:02:09]}  Nf6 {[%clk 0:01:47]} 25. Rb7 {[%clk 0:02:01]}  Kd6 {[%clk 0:01:44]} 26. Nc6 {[%clk 0:01:32]}  Rc8 {[%clk 0:01:39]} 27. Nd4 {[%clk 0:01:32]}  Rc1+ {[%clk 0:01:37]} 28. Kh2 {[%clk 0:01:32]}  Ne5 {[%clk 0:01:19]} 29. Bb8+ {[%clk 0:01:27]} 1-0


[Site "https://www.chess.com"]

[Event "Titled Tuesday Blitz November 29 Late 2022"]
[White "Ferriz Barrios, Andres"]
[Black "Bazzano, Sebastian"]
[WhiteFideId "5104467"]
[BlackFideId "104566"]
[WhiteElo "2216"]
[BlackElo "2179"]
[Result "0-1"]
[Round "06"]
[TimeControl "180+1"]
[Date "2022.11.30"]
[WhiteClock "0:01:10"]
[BlackClock "0:00:12"]

1. d4 {[%clk 0:02:56]}  Nf6 {[%clk 0:02:59]} 2. Nf3 {[%clk 0:02:56]}  g6 {[%clk 0:02:59]} 3. Nc3 {[%clk 0:02:56]}  d5 {[%clk 0:02:59]} 4. Bf4 {[%clk 0:02:57]}  c6 {[%clk 0:02:57]} 5. Ne5 {[%clk 0:02:56]}  Bg7 {[%clk 0:02:57]} 6. Qd2 {[%clk 0:02:56]}  O-O {[%clk 0:02:56]} 7. O-O-O {[%clk 0:02:56]}  Nbd7 {[%clk 0:02:56]} 8. f3 {[%clk 0:02:55]}  Nxe5 {[%clk 0:02:49]} 9. Bxe5 {[%clk 0:02:54]}  Be6 {[%clk 0:02:42]} 10. h4 {[%clk 0:02:53]}  h5 {[%clk 0:02:23]} 11. e4 {[%clk 0:02:45]}  dxe4 {[%clk 0:02:02]} 12. fxe4 {[%clk 0:02:44]}  Ng4 {[%clk 0:01:34]} 13. Bxg7 {[%clk 0:02:42]}  Kxg7 {[%clk 0:01:35]} 14. d5 {[%clk 0:02:40]}  cxd5 {[%clk 0:01:34]} 15. exd5 {[%clk 0:02:41]}  Bf5 {[%clk 0:01:32]} 16. Bd3 {[%clk 0:02:41]}  Bxd3 {[%clk 0:01:23]} 17. Qxd3 {[%clk 0:02:42]}  Kg8 {[%clk 0:01:19]} 18. Rdf1 {[%clk 0:02:40]}  a6 {[%clk 0:01:10]} 19. Rf4 {[%clk 0:02:38]}  Qd6 {[%clk 0:01:03]} 20. g3 {[%clk 0:02:37]}  b5 {[%clk 0:01:02]} 21. Ne4 {[%clk 0:02:34]}  Qb6 {[%clk 0:00:50]} 22. Kb1 {[%clk 0:02:27]}  f5 {[%clk 0:00:37]} 23. Ng5 {[%clk 0:02:03]}  Nf2 {[%clk 0:00:36]} 24. Rxf2 {[%clk 0:01:59]}  Qxf2 {[%clk 0:00:37]} 25. Rf1 {[%clk 0:01:59]}  Qc5 {[%clk 0:00:29]} 26. a3 {[%clk 0:01:57]}  a5 {[%clk 0:00:26]} 27. g4 {[%clk 0:01:48]}  Qc4 {[%clk 0:00:19]} 28. gxh5 {[%clk 0:01:39]}  Qxd3 {[%clk 0:00:19]} 29. cxd3 {[%clk 0:01:40]}  gxh5 {[%clk 0:00:18]} 30. Ne6 {[%clk 0:01:41]}  Rf6 {[%clk 0:00:15]} 31. Rg1+ {[%clk 0:01:41]}  Kh8 {[%clk 0:00:14]} 32. Nf4 {[%clk 0:01:39]}  Rg8 {[%clk 0:00:13]} 33. Re1 {[%clk 0:01:34]}  Rf7 {[%clk 0:00:09]} 34. Re6 {[%clk 0:01:29]}  Rg4 {[%clk 0:00:09]} 35. Rh6+ {[%clk 0:01:27]}  Kg7 {[%clk 0:00:08]} 36. d6 {[%clk 0:01:07]}  Kxh6 {[%clk 0:00:06]} 37. d7 {[%clk 0:01:04]}  Rf8 {[%clk 0:00:05]} 38. Ne6 {[%clk 0:01:03]}  Rgg8 {[%clk 0:00:05]} 39. Nxf8 {[%clk 0:01:03]}  Rxf8 {[%clk 0:00:06]} 40. Kc2 {[%clk 0:01:04]}  Rd8 {[%clk 0:00:06]} 41. Kc3 {[%clk 0:01:04]}  Rxd7 {[%clk 0:00:07]} 42. b4 {[%clk 0:01:04]}  axb4+ {[%clk 0:00:07]} 43. axb4 {[%clk 0:01:05]}  e5 {[%clk 0:00:07]} 44. Kd2 {[%clk 0:01:05]}  e4 {[%clk 0:00:07]} 45. Ke2 {[%clk 0:01:06]}  Rxd3 {[%clk 0:00:07]} 46. Kf2 {[%clk 0:01:06]}  Rb3 {[%clk 0:00:08]} 47. Ke2 {[%clk 0:01:06]}  f4 {[%clk 0:00:08]} 48. Kf2 {[%clk 0:01:06]}  Kg6 {[%clk 0:00:08]} 49. Ke2 {[%clk 0:01:07]}  Kf5 {[%clk 0:00:09]} 50. Kf2 {[%clk 0:01:07]}  Kg4 {[%clk 0:00:10]} 51. Ke2 {[%clk 0:01:08]}  Kxh4 {[%clk 0:00:11]} 52. Kf2 {[%clk 0:01:09]}  Kg4 {[%clk 0:00:11]} 53. Ke2 {[%clk 0:01:09]}  h4 {[%clk 0:00:12]} 54. Kf2 {[%clk 0:01:10]}  h3 {[%clk 0:00:13]} 55. Kg1 {[%clk 0:01:10]}  Kf3 {[%clk 0:00:13]} 56. Kh2 {[%clk 0:01:10]}  Kg4 {[%clk 0:00:12]} 57. Kg1 {[%clk 0:01:10]}  Kg3 {[%clk 0:00:12]} 58. Kf1 {[%clk 0:01:10]}  Re3 {[%clk 0:00:12]} 0-1


[Site "https://www.chess.com"]

[Event "Titled Tuesday Blitz November 29 Late 2022"]
[White "Foerster-Yialamas, Lucas"]
[Black "Dzierzak, Radoslaw"]
[WhiteFideId "30901774"]
[BlackFideId "1161407"]
[WhiteElo "2067"]
[BlackElo "2111"]
[Result "1-0"]
[Round "06"]
[TimeControl "180+1"]
[Date "2022.11.30"]
[WhiteClock "0:01:44"]
[BlackClock "0:00:04"]

1. e4 {[%clk 0:03:00]}  c6 {[%clk 0:02:57]} 2. Nc3 {[%clk 0:02:57]}  d5 {[%clk 0:02:58]} 3. d4 {[%clk 0:02:56]}  dxe4 {[%clk 0:02:57]} 4. Nxe4 {[%clk 0:02:57]}  Bf5 {[%clk 0:02:57]} 5. Ng3 {[%clk 0:02:58]}  Bg6 {[%clk 0:02:57]} 6. h4 {[%clk 0:02:56]}  h6 {[%clk 0:02:57]} 7. Bd3 {[%clk 0:02:57]}  Bxd3 {[%clk 0:02:55]} 8. Qxd3 {[%clk 0:02:58]}  e6 {[%clk 0:02:52]} 9. Nf3 {[%clk 0:02:58]}  Nd7 {[%clk 0:02:52]} 10. Bf4 {[%clk 0:02:57]}  Qa5+ {[%clk 0:02:50]} 11. c3 {[%clk 0:02:57]}  Ngf6 {[%clk 0:02:49]} 12. Ne5 {[%clk 0:02:56]}  c5 {[%clk 0:02:28]} 13. Nxd7 {[%clk 0:02:53]}  Nxd7 {[%clk 0:02:28]} 14. O-O {[%clk 0:02:52]}  Be7 {[%clk 0:02:21]} 15. h5 {[%clk 0:02:50]}  O-O {[%clk 0:02:15]} 16. d5 {[%clk 0:02:49]}  exd5 {[%clk 0:01:58]} 17. Qxd5 {[%clk 0:02:50]}  Rfd8 {[%clk 0:01:23]} 18. Nf5 {[%clk 0:02:48]}  Bf6 {[%clk 0:01:18]} 19. Qf3 {[%clk 0:02:44]}  Ne5 {[%clk 0:01:11]} 20. Qg3 {[%clk 0:02:43]}  c4 {[%clk 0:00:43]} 21. Bxh6 {[%clk 0:02:35]}  Rd3 {[%clk 0:00:40]} 22. f3 {[%clk 0:02:24]}  Qc5+ {[%clk 0:00:32]} 23. Kh1 {[%clk 0:02:14]}  Ng6 {[%clk 0:00:32]} 24. Qg4 {[%clk 0:01:59]}  Rd5 {[%clk 0:00:24]} 25. Be3 {[%clk 0:01:50]}  Qa5 {[%clk 0:00:18]} 26. hxg6 {[%clk 0:01:49]}  Rxf5 {[%clk 0:00:18]} 27. gxf7+ {[%clk 0:01:48]}  Kxf7 {[%clk 0:00:19]} 28. Qxc4+ {[%clk 0:01:48]}  Ke7 {[%clk 0:00:08]} 29. b4 {[%clk 0:01:46]}  Rh5+ {[%clk 0:00:06]} 30. Kg1 {[%clk 0:01:46]}  Qe5 {[%clk 0:00:06]} 31. Bc5+ {[%clk 0:01:45]}  Kd7 {[%clk 0:00:04]} 32. Rad1+ {[%clk 0:01:44]} 1-0


[Site "https://www.chess.com"]

[Event "Titled Tuesday Blitz November 29 Late 2022"]
[White "Freile Martin, Javier"]
[Black "Reprintsev, Alexander"]
[WhiteFideId "3600165"]
[BlackFideId "14100541"]
[WhiteElo "2332"]
[BlackElo "2230"]
[Result "0-1"]
[Round "06"]
[TimeControl "180+1"]
[Date "2022.11.30"]
[WhiteClock "0:02:19"]
[BlackClock "0:02:01"]

1. c4 {[%clk 0:03:00]}  e5 {[%clk 0:02:54]} 2. Nc3 {[%clk 0:02:59]}  Nc6 {[%clk 0:02:53]} 3. Nf3 {[%clk 0:02:59]}  Bb4 {[%clk 0:02:53]} 4. Qc2 {[%clk 0:02:56]}  a5 {[%clk 0:02:39]} 5. e3 {[%clk 0:02:56]}  d6 {[%clk 0:02:36]} 6. a3 {[%clk 0:02:55]}  Bxc3 {[%clk 0:02:36]} 7. Qxc3 {[%clk 0:02:55]}  Nge7 {[%clk 0:02:34]} 8. d4 {[%clk 0:02:55]}  Bg4 {[%clk 0:02:26]} 9. dxe5 {[%clk 0:02:50]}  Bxf3 {[%clk 0:02:25]} 10. exd6 {[%clk 0:02:47]}  Bh5 {[%clk 0:02:11]} 11. g4 {[%clk 0:02:40]}  Bxg4 {[%clk 0:02:07]} 12. Qxg7 {[%clk 0:02:38]}  Rg8 {[%clk 0:02:07]} 13. Qxh7 {[%clk 0:02:32]}  Qxd6 {[%clk 0:02:05]} 14. Bd2 {[%clk 0:02:29]}  O-O-O {[%clk 0:02:03]} 15. f3 {[%clk 0:02:19]}  Qxd2# {[%clk 0:02:01]} 0-1


[Site "https://www.chess.com"]